Cogmind - Beta 16.1 @@@ ROGUE MODE // 2026.02.18 @ 21:01:05 Player: Ceorik Result: Destroyed by C-17 Slicer with Blade Saw Performance ------------- Evolutions (4) 2000 Regions Visited (9) 1800 Robots Destroyed (36) 180 Value Destroyed (1390) 1390 Prototype IDs (11) 220 Alien Tech Used (0) 0 Bonus (170) 170 TOTAL SCORE: 5760 Bonus ------- Met Data Miner 300 Friendly Fire -130 Cogmind --------- Core Integrity 0/850 Matter 262/300 Energy 67/100 System Corruption 1% Temperature Cool (0) Movement Core (50) Location -6/Factory Parts ------- > --- POWER (2) -------- (None) > --- PROPULSION (3) --- (None) > --- UTILITY (8) ------ Signal Interpreter > --- WEAPON (2) ------- Improved Datajack > --- INVENTORY (5) ---- Enhanced Flexi-carbon Leg Structural Scanner Makeshift ECM Suite Peak State ------------ > --- POWER ------------ Fusion Compressor > --- PROPULSION ------- Gravmag Array > --- UTILITY ---------- Small Storage Unit Advanced Energy Well Compact Matter Pod Gravity Neutralizer Signal Interpreter Improved Power Shielding Improved Weapon Shielding Force Field > --- WEAPON ----------- Makeshift Hammer > --- INVENTORY -------- Enhanced Flexi-carbon Leg Gravmag Array Structural Scanner Makeshift ECM Suite Insulated Plating Advanced Beam Rifle Improved Datajack [Rating: 52] Favorites ----------- Power Nuclear Core Engine Ion Engine Power Core Nuclear Core Propulsion Carbon-fiber Leg Treads Light Treads Leg Carbon-fiber Leg Hover Unit Gravmag Array Flight Unit Makeshift Flight Unit Utility Small Storage Unit Device Structural Scanner Storage Small Storage Unit Processor Signal Interpreter Protection Improved Light Armor Plating Weapon Gauss Cannon Energy Gun EM Pulse Gun Ballistic Gun Assault Rifle Ballistic Cannon Gauss Cannon Launcher Heavy Rocket Launcher Impact Weapon Hammer Piercing Weapon Makeshift Spear Special Melee Weapon Improved Datajack Build | -11 -10 -10 -10 -8 -7 -7 -7 -6 -6 ------- Run | Yrd Mat Min Sub Mat Fac Low Dat Pro Fac Slots Evolved 8 | . . . . 4 2 . . . 2 Power 1 | . . . . . . . . . 1 Propulsion 1 | . . . . 1 . . . . . Utility 6 | . . . . 3 2 . . . 1 Weapon . | . . . . . . . . . . Parts Attached 46 | 9 1 1 2 12 3 4 . 3 11 Power 4 | 1 . . 1 1 . . . . 1 Engine 2 | 1 . . 1 . . . . . . Core 2 | . . . . 1 . . . . 1 Reactor . | . . . . . . . . . . Propulsion 13 | 4 . . . 4 . 2 . 1 2 Treads 2 | 2 . . . . . . . . . Leg 8 | 2 . . . 4 . 2 . . . Wheel . | . . . . . . . . . . Hover 2 | . . . . . . . . . 2 Flight 1 | . . . . . . . . 1 . Utility 19 | 2 . . 1 4 3 1 . 2 6 Device 4 | 1 . . 1 . . . . . 2 Storage 3 | 1 . . . . 1 . . . 1 Processor 1 | . . . . 1 . . . . . Hackware . | . . . . . . . . . . Protection 11 | . . . . 3 2 1 . 2 3 Artifact . | . . . . . . . . . . Weapon 10 | 2 1 1 . 3 . 1 . . 2 Energy Gun 2 | 1 . . . 1 . . . . . Energy Cannon . | . . . . . . . . . . Ballistic Gun 1 | 1 . . . . . . . . . Ballistic Cannon 2 | . . . . 2 . . . . . Launcher 1 | . . . . . . 1 . . . Special Weapon . | . . . . . . . . . . Impact Weapon 2 | . 1 . . . . . . . 1 Slashing Weapon . | . . . . . . . . . . Piercing Weapon 1 | . . 1 . . . . . . . Special Melee Weapon 1 | . . . . . . . . . 1 Unidentified Prototypes 2 | . . . . 1 . . . . 1 Parts Lost 27 | . . . 1 . . 1 . 11 14 Power 3 | . . . 1 . . . . 1 1 Propulsion 5 | . . . . . . . . 3 2 Utility 14 | . . . . . . 1 . 4 9 Weapon 5 | . . . . . . . . 3 2 Highest Loss Streak 12 | . . . 1 . . 1 . 7 12 To Critical Strikes . | . . . . . . . . . . Average Backups 6 | . 4 8 7 7 7 7 7 5 6 Power . | . 1 1 . . . . . . . Propulsion . | . . . . . . . . . 1 Utility 2 | . 1 4 4 3 2 3 3 2 2 Weapon 2 | . 2 3 3 4 3 3 3 2 1 Tool/Special . | . . . . . . . . . . Unused Backups 11 | . . 3 . 4 1 . . . 3 Power . | . . . . . . . . . . Propulsion 1 | . . . . . . . . . 1 Utility 3 | . . . . 1 . . . . 2 Weapon 7 | . . 3 . 3 1 . . . . Tool/Special . | . . . . . . . . . . Average Slot Usage (%) 93 | . 100 100 99 96 99 99 100 87 49 Engine 3 | . 14 14 13 1 . . . . . Core 4 | . . . . 7 7 7 7 5 1 Leg 21 | . 28 28 28 24 23 23 23 18 . Device 8 | . 14 14 14 9 5 7 7 7 7 Storage 9 | . 14 14 14 9 8 7 7 7 12 Processor 5 | . . . . 6 7 7 7 7 6 Protection 19 | . . . . 19 29 29 30 25 9 Energy Gun 2 | . 9 . 11 . . . . . . Ballistic Gun 1 | . 14 14 2 . . . . . . Ballistic Cannon 7 | . . . . 9 7 12 15 9 . Piercing Weapon 5 | . . 8 14 7 6 2 . 2 1 Peak Build Rating 52 | 7 7 10 11 27 35 35 35 38 52 Average Rating 25 | 4 7 8 10 21 32 34 35 30 30 On Entrance 18 | . 7 7 10 11 27 35 35 35 16 Avg Prop Armor Cover (%) . | . . . . . . . . . . Naked Turns . | . . . . . . . . . . Heaviest Build 41 | 15 15 15 15 33 36 36 36 41 28 Greatest Support 45 | 40 20 20 20 45 45 45 45 45 32 Greatest Overweight (x) 8 | 1 . . . 1 . . . 3 8 Average Overweight (x) . | . . . . . . . . . . Largest Inventory Capacity 8 | 8 8 8 8 8 8 8 8 8 8 Average Capacity 7 | 7 8 8 8 8 8 8 8 8 7 Most Carried 8 | 3 8 8 8 8 8 8 8 8 8 Average Carried 6 | . 5 7 7 7 7 7 8 6 6 Final Capacity 8 | 8 8 8 8 8 8 8 8 8 5 Final Carried 8 | 2 8 8 7 8 8 8 8 6 3 Class Distribution -------------------- 100% | Mutant Dominant Class ---------------- Mutant | -10/Materials Mutant | -10/Mines Mutant | -10/Subcaves Mutant | -8/Materials Mutant | -7/Factory Mutant | -7/Lower Caves Mutant | -7/Data Miner Mutant | -6/Proximity Caves Mutant | -6/Factory Resources | -11 -10 -10 -10 -8 -7 -7 -7 -6 -6 ----------- Run | Yrd Mat Min Sub Mat Fac Low Dat Pro Fac Matter Collected 1658 | 61 . 202 86 216 92 637 . 250 114 Remotely . | . . . . . . . . . . Salvage Created 1236 | 112 . 90 51 185 . 419 . 220 159 Parts 55 | 5 . 5 2 13 . 13 . 10 7 Haulers Intercepted . | . . . . . . . . . . Recyclers Shooed . | . . . . . . . . . . Parts Field Recycled . | . . . . . . . . . . Retrieved Matter . | . . . . . . . . . . Parts Self-Destructed 31 | . . . 14 . . 11 . 6 . Prevented . | . . . . . . . . . . Parts Restored . | . . . . . . . . . . Kills | -11 -10 -10 -10 -8 -7 -7 -7 -6 -6 ------- Run | Yrd Mat Min Sub Mat Fac Low Dat Pro Fac Combat Hostiles Destroyed 29 | . . 2 1 4 . 13 . 6 3 Melee 7 | . . 2 1 . . 1 . 1 2 Guns 1 | . . . . . . . . . 1 Cannons 12 | . . . . 4 . 8 . . . AOE 9 | . . . . . . 4 . 5 . Classes Destroyed 14 | 2 . 1 1 4 . 3 . 2 1 Worker 1 | . . . . 1 . . . . . Builder 2 | . . . . 1 . . . . 1 Tunneler 2 | 1 . . . . . . . . 1 Recycler 1 | 1 . . . . . . . . . Swarmer 3 | . . . . . . 2 . . 1 Cutter 1 | . . . . . . . . . 1 Grunt 13 | . . 2 . 2 . 5 . 3 1 Brawler 2 | . . . . 1 . 1 . . . Duelist 1 | . . . . . . 1 . . . Sentry 2 | . . . . 1 . 1 . . . Hunter 2 | . . . . . . . . 2 . Behemoth 1 | . . . . . . . . 1 . Subdweller 1 | . . . 1 . . . . . . Savage 1 | . . . . . . 1 . . . Butcher 2 | . . . . . . 2 . . . Mutant 1 | . . . . . . 1 . . . Best Kill Streak 5 | 2 . 2 1 5 . 5 . 3 3 Combat Bots Only 5 | . . 2 1 3 . 5 . 3 1 Max Kills in Single Turn 2 | 1 . 1 1 1 . 2 . 2 1 Gunslinging . | . . . . . . . . . . Exploded 2 | . . . . . . 2 . 2 . Melee 1 | . . 1 1 . . 1 . 1 1 Uniques/NPCs Destroyed . | . . . . . . . . . . Combat | -11 -10 -10 -10 -8 -7 -7 -7 -6 -6 -------- Run | Yrd Mat Min Sub Mat Fac Low Dat Pro Fac Hostile Shots Fired 481 | . . 18 8 16 2 69 . 121 247 Missed 172 | . . 5 4 5 1 29 . 29 99 Hits 309 | . . 13 4 11 1 40 . 92 148 Melee 11 | . . . . . . 2 . . 9 Projectile 298 | . . 13 4 11 1 38 . 92 139 AOE 3 | . . . . . . . . . 3 Critical Strikes 12 | . . . . . . 1 . 3 8 Actively Blocked 2 | . . . . . . 1 . . 1 Damage Taken 4934 | . . 124 86 150 14 504 . 1872 2184 Core 1344 | . . 7 . . . 37 . 431 869 Absorbed by Shields 145 | . . . . . . . . . 145 Redirected to Shielding 272 | . . . . . . 21 . 53 198 Ignored by Resistances 48 | . . . . . . . . 48 . Core Remaining (%) 82 | 100 . . 97 100 . . . 33 . Volleys Fired 56 | 3 . . . 10 . 34 . 8 1 Largest 2 | 2 . . . 2 . 2 . 2 1 Hottest 80 | 60 . . . 80 . 80 . 79 61 Shots Fired 100 | 6 . . . 18 . 59 . 16 1 Gun 7 | 6 . . . . . . . . 1 Cannon 77 | . . . . 18 . 51 . 8 . Launcher 16 | . . . . . . 8 . 8 . Special . | . . . . . . . . . . Kinetic 80 | 3 . . . 18 . 51 . 8 . Thermal 1 | . . . . . . . . . 1 Explosive 16 | . . . . . . 8 . 8 . Electromagnetic 3 | 3 . . . . . . . . . Robot Hit Streak 8 | 3 . . . 2 . 8 . 3 1 Robot Miss Streak 4 | 3 . . . 2 . 3 . 4 . Penetration Max 1 | . . . . 1 . . . 1 . Secondary Targets . | . . . . . . . . . . Shots Hit Robots 80 | 3 . 4 5 8 . 36 . 13 11 Core Hits 54 | 3 . 2 1 6 . 23 . 15 4 Critical Kills 1 | . . . . . . . . . 1 Critical Parts Destroyed . | . . . . . . . . . . Critical Strikes 11 | . . 2 1 3 . 3 . . 2 Blast 6 | . . . . 3 . 3 . . . Smash 1 | . . . . . . . . . 1 Impale 4 | . . 2 1 . . . . . 1 Melee Attacks 61 | . . 7 14 1 . 5 . 9 25 Impact 14 | . . . . . . . . . 14 Slashing . | . . . . . . . . . . Piercing 45 | . . 7 14 1 . 5 . 9 9 Sneak Attacks 2 | . . . . . . . . . 2 Combat Hostiles . | . . . . . . . . . . Follow-up Attacks . | . . . . . . . . . . Damage Inflicted 3758 | 38 . 110 139 330 . 1546 . 1151 444 Guns 58 | 38 . . . . . . . . 20 Cannons 1278 | . . . . 330 . 811 . 137 . Explosions 1461 | . . . . . . 637 . 824 . Melee 961 | . . 110 139 . . 98 . 190 424 Ramming . | . . . . . . . . . . Kinetic 1304 | 26 . . . 330 . 811 . 137 . Thermal 20 | . . . . . . . . . 20 Explosive 1461 | . . . . . . 637 . 824 . Electromagnetic 12 | 12 . . . . . . . . . Impact 252 | . . . . . . . . . 252 Slashing . | . . . . . . . . . . Piercing 709 | . . 110 139 . . 98 . 190 172 Highest Corruption 3 | . . . . . . . . 3 1 Average Corruption 2 | . . . . . . . . 3 1 Corruption Purged . | . . . . . . . . . . Corruption Blocked . | . . . . . . . . . . Effects 11 | . . . . . . . . 8 3 Message Errors 3 | . . . . . . . . 3 . Matter Fused 4 | . . . . . . . . 2 2 Heat Flow Errors 1 | . . . . . . . . 1 . Energy Discharges 1 | . . . . . . . . 1 . Data Loss (minor) 2 | . . . . . . . . 1 1 Overload Shots . | . . . . . . . . . . Overflow Damage 231 | . . . . . . 54 . 4 173 Projectiles 9 | . . . . . . 9 . . . Explosions 49 | . . . . . . 45 . 4 . Melee 173 | . . . . . . . . . 173 Knockbacks 4 | . . . . . . 4 . . . Impact . | . . . . . . . . . . Kinetic 4 | . . . . . . 4 . . . Secondary . | . . . . . . . . . . Self-Inflicted Damage 8 | . . . . . . . . 8 . Shots 1 | . . . . . . . . 1 . Rammed . | . . . . . . . . . . Targets Rammed . | . . . . . . . . . . Kicked . | . . . . . . . . . . Crushed . | . . . . . . . . . . Highest Temperature 210 | . . . . 210 . 63 . 137 9 Average Temperature 41 | . . . . 100 . 16 . 35 9 Received Heat Transfer 783 | . . 39 . 90 . 129 . 198 327 Siege Activations . | . . . . . . . . . . Martial Activations . | . . . . . . . . . . Shielding Activations . | . . . . . . . . . . Robots Disrupted . | . . . . . . . . . . Combat Hostiles . | . . . . . . . . . . Robots Corrupted . | . . . . . . . . . . Combat Hostiles . | . . . . . . . . . . Parts Fried 1 | . . . . . . . . . 1 Impact Corruptions 4 | . . . . . . . . . 4 Robots Melted . | . . . . . . . . . . Combat Hostiles . | . . . . . . . . . . Parts Melted . | . . . . . . . . . . Heat Transferred 37 | . . . . . . . . . 37 Parts Sabotaged . | . . . . . . . . . . Parts Stolen . | . . . . . . . . . . Parts Stripped . | . . . . . . . . . . Power Chain Reactions . | . . . . . . . . . . Alert | -11 -10 -10 -10 -8 -7 -7 -7 -6 -6 ------- Run | Yrd Mat Min Sub Mat Fac Low Dat Pro Fac Maximum Alert Level . | . . . . . . . . . . Low Security (%) 100 | 100 100 100 . 100 100 . . . 100 Level 1 . | . . . . . . . . . . Level 2 . | . . . . . . . . . . Level 3 . | . . . . . . . . . . Level 4 . | . . . . . . . . . . Level 5 . | . . . . . . . . . . High Security . | . . . . . . . . . . Max Security . | . . . . . . . . . . Peak Influence 80 | 5 8 40 . 80 28 . . . 41 Initial 28 | . 3 . . . 28 . . . . Average 6 | . . 10 . 8 3 . . . 5 Influence Increases 809 | 10 8 50 . 152 . 235 . 217 137 Destroy 0b10 Robot/C 500 | . . 40 . 80 . 200 . 120 60 Destroy 0b10 Robot/NC 30 | 10 . . . 10 . . . . 10 Destroy Leader 80 | . . 10 . 20 . 20 . 30 . Allied During Kill 7 | . . . . . . . . 7 . Successful Hack 39 | . 8 . . 31 . . . . . Destroy Structure 18 | . . . . 11 . . . . 7 Partial Spotted 15 | . . . . . . . . . 15 Lose Combat Pursuer 120 | . . . . . . 15 . 60 45 Influence Decreases 784 | 5 13 40 10 88 64 177 58 217 112 Entered New Map 102 | . 2 . 6 . 36 . 58 . . Time Decay 579 | 5 11 40 4 88 28 167 . 202 34 Lost Part 101 | . . . . . . 10 . 15 76 Lost Ally 2 | . . . . . . . . . 2 Squads Dispatched 5 | . 2 . . . 1 . . . 2 Investigation 1 | . . . . . . . . . 1 Extermination 1 | . . . . . 1 . . . . Reinforcement 3 | . 2 . . . . . . . 1 Assault . | . . . . . . . . . . Garrison . | . . . . . . . . . . Intercept . | . . . . . . . . . . Searches Triggered . | . . . . . . . . . . Data Miner Redirects 1 | . . . . . . . . . 1 Construction Impeded . | . . . . . . . . . . Haulers Reinforced . | . . . . . . . . . . Active Scanning Responses . | . . . . . . . . . . Cargo Convoy Interrupts . | . . . . . . . . . . Stealth | -11 -10 -10 -10 -8 -7 -7 -7 -6 -6 --------- Run | Yrd Mat Min Sub Mat Fac Low Dat Pro Fac Distress Signals . | . . . . . . . . . . Communications Jammed . | . . . . . . . . . . Distress Signals . | . . . . . . . . . . Times Spotted 58 | . 5 5 1 7 1 17 . 9 13 Peak Tracking Total 8 | . 5 3 1 3 1 5 . 4 8 Tactical Retreats 7 | . . . . . . 1 . 4 2 Traps | -11 -10 -10 -10 -8 -7 -7 -7 -6 -6 ------- Run | Yrd Mat Min Sub Mat Fac Low Dat Pro Fac Traps Triggered 1 | . . . . 1 . . . . . Indirectly . | . . . . . . . . . . Trap Hack Attempts . | . . . . . . . . . . Triggered . | . . . . . . . . . . Disarmed . | . . . . . . . . . . Reprogrammed . | . . . . . . . . . . Reused . | . . . . . . . . . . Traps Extracted . | . . . . . . . . . . Installed 1 | . . . . . . . . 1 . Triggered . | . . . . . . . . . . Most Traps Carried 1 | . . . . . . 1 1 1 . Machines | -11 -10 -10 -10 -8 -7 -7 -7 -6 -6 ---------- Run | Yrd Mat Min Sub Mat Fac Low Dat Pro Fac Machines Disabled . | . . . . . . . . . . Max in Single Turn . | . . . . . . . . . . Machines Repaired . | . . . . . . . . . . Machines Dismantled . | . . . . . . . . . . Machines Sabotaged . | . . . . . . . . . . Overloaded Fab Kills . | . . . . . . . . . . Hacking | -11 -10 -10 -10 -8 -7 -7 -7 -6 -6 --------- Run | Yrd Mat Min Sub Mat Fac Low Dat Pro Fac Machines Accessed 18 | . 1 . 1 7 1 2 4 1 1 Terminals 8 | . 1 . . 5 . 1 . 1 . Fabricators 1 | . . . . . . . . . 1 Repair Stations 1 | . . . . 1 . . . . . Recycling Units 1 | . . . . 1 . . . . . Scanalyzers . | . . . . . . . . . . Garrison Access 1 | . . . . . 1 . . . . Total Hacks 59 | . 4 . 4 18 1 2 26 1 3 Successful 45 | . 1 . 4 8 . 2 26 1 3 Failed 14 | . 3 . . 10 1 . . . . Catastrophic 5 | . . . . 4 1 . . . . Database Lockouts . | . . . . . . . . . . Manual 10 | . 4 . 1 3 . . . 2 . Terminals 19 | . 4 . . 13 . 1 . 1 . Fabricators 3 | . . . . . . . . . 3 Repair Stations 1 | . . . . 1 . . . . . Recycling Units 4 | . . . . 4 . . . . . Scanalyzers . | . . . . . . . . . . Garrison Access 1 | . . . . . 1 . . . . Terminal Hacks 41 | . 1 . 4 7 . 2 26 1 . Record 21 | . . . 4 3 . 2 11 1 . Part Schematic 10 | . . . . 1 . . 9 . . Robot Schematic 3 | . . . . . . . 3 . . Prototype ID Bank 3 | . . . . . . . 3 . . Branch Access Points 2 | . 1 . . 1 . . . . . Scanalyzer Index 1 | . . . . 1 . . . . . Surveillance Status 1 | . . . . 1 . . . . . Fabricator Hacks 3 | . . . . . . . . . 3 Load Schematic 3 | . . . . . . . . . 3 Repair Station Hacks . | . . . . . . . . . . Recycling Unit Hacks 1 | . . . . 1 . . . . . Report Inventory 1 | . . . . 1 . . . . . Scanalyzer . | . . . . . . . . . . Garrison Access Hacks . | . . . . . . . . . . Unauthorized Hacks . | . . . . . . . . . . Terminals . | . . . . . . . . . . Fabricators . | . . . . . . . . . . Repair Stations . | . . . . . . . . . . Recycling Units . | . . . . . . . . . . Scanalyzers . | . . . . . . . . . . Garrison Access . | . . . . . . . . . . Data Cores Recovered . | . . . . . . . . . . Used . | . . . . . . . . . . Hacking Detections 11 | . 1 . . 7 1 1 . . 1 Full Trace Events 1 | . . . . . . . . . 1 Feedback Events 1 | . . . . . . . . . 1 Corruption 1 | . . . . . . . . . 1 Feedback Blocked . | . . . . . . . . . . Robot Schematics Acquired 3 | . . . . . . . 3 . . Robots Built . | . . . . . . . . . . Authchips . | . . . . . . . . . . Time . | . . . . . . . . . . Total Robot Build Rating . | . . . . . . . . . . Part Schematics Acquired 10 | . . . . 1 . . 9 . . Parts Built . | . . . . . . . . . . Authchips . | . . . . . . . . . . Time . | . . . . . . . . . . Total Part Build Rating . | . . . . . . . . . . Part Studies Acquired . | . . . . . . . . . . Parts Repaired . | . . . . . . . . . . Time . | . . . . . . . . . . Parts Recycled . | . . . . . . . . . . Recycled Matter . | . . . . . . . . . . Retrieved Matter . | . . . . . . . . . . Retrieved Components . | . . . . . . . . . . Parts Scanalyzed . | . . . . . . . . . . Part Schematics Acquired . | . . . . . . . . . . Parts Damaged . | . . . . . . . . . . Bothacking | -11 -10 -10 -10 -8 -7 -7 -7 -6 -6 ------------ Run | Yrd Mat Min Sub Mat Fac Low Dat Pro Fac Used RIF Installer . | . . . . . . . . . . Robots Hacked . | . . . . . . . . . . Non-combat . | . . . . . . . . . . Combat . | . . . . . . . . . . Robot Hacks Applied . | . . . . . . . . . . Relay Couplers Released . | . . . . . . . . . . Fabnet Peak Effective % . | . . . . . . . . . . Robots Rewired . | . . . . . . . . . . Allies Hacked . | . . . . . . . . . . Hacks Repelled . | . . . . . . . . . . Allies | -11 -10 -10 -10 -8 -7 -7 -7 -6 -6 -------- Run | Yrd Mat Min Sub Mat Fac Low Dat Pro Fac Total Allies 1 | . . . . . . . . 1 . Largest Group 1 | . . . . . . . . 1 1 Highest-Rated Group 96 | . . . . . . . . 96 96 Highest-Rated Ally 96 | . . . . . . . . 96 96 Total Orders . | . . . . . . . . . . Ally Attacks 7 | . . . . . . . . 1 6 Total Damage 183 | . . . . . . . . . 183 Kills . | . . . . . . . . . . Allies Corrupted . | . . . . . . . . . . Allies Melted 1 | . . . . . . . . . 1 Intel | -11 -10 -10 -10 -8 -7 -7 -7 -6 -6 ------- Run | Yrd Mat Min Sub Mat Fac Low Dat Pro Fac Active Infowar (turns) 4879 | 4 197 195 853 556 240 1050 117 1529 138 Structural 4325 | . . . 695 556 240 1050 117 1529 138 Seismic 554 | 4 197 195 158 . . . . . . Robot Analysis Total . | . . . . . . . . . . Derelict Logs Recovered 3 | . . 1 . . . 1 . 1 . Drone Launches . | . . . . . . . . . . Drone Recoveries . | . . . . . . . . . . Exploration | -11 -10 -10 -10 -8 -7 -7 -7 -6 -6 ------------- Run | Yrd Mat Min Sub Mat Fac Low Dat Pro Fac Turns Passed 5107 | 90 197 195 853 556 298 1050 117 1529 222 Spaces Moved 3806 | 54 153 135 664 366 238 758 98 1154 186 Core 57 | 11 . . . . . . . 36 10 Treads 5 | 5 . . . . . . . . . Legs 3449 | 38 153 135 664 366 238 758 98 999 . Wheels . | . . . . . . . . . . Hover 157 | . . . . . . . . . 157 Flight 138 | . . . . . . . . 119 19 Fastest Speed 50 | 50 120 120 120 120 120 120 120 120 50 Average Speed 120 | 113 120 120 120 131 120 120 120 126 77 Slowest Speed 450 | 160 120 120 120 190 120 120 120 260 450 Overloaded Moves . | . . . . . . . . . . Propulsion Burnouts . | . . . . . . . . . . Robots Hopped . | . . . . . . . . . . Potential Cave-ins 7 | . . . . . . . . 3 4 Cave-ins Triggered 1 | . . . . . . . . 1 . Exploration Rate (%) 38 | 3 30 35 30 30 7 69 72 98 6 Regions Visited 9 Branch Regions 5 Pre-discovered Areas 3 | . . 1 1 . . . 1 . . Known Exits Taken 6 | . 1 . . 1 1 1 1 1 . Unknown Exits Taken 3 | 1 . 1 1 . . . . . . Scrap Searched 6 | . . 1 1 . . 1 . 3 . Spaces Dug 25 | . . . . 1 . . . 15 9 Terrain Destroyed 220 | . . . . 10 . 109 . 92 9 Melee 11 | . . . . 1 . . . 1 9 Projectile 23 | . . . . 9 . 12 . 2 . AOE 186 | . . . . . . 97 . 89 . Terrain Rammed . | . . . . . . . . . . Walls Destroyed . | . . . . . . . . . . Machines Disabled . | . . . . . . . . . . Actions | -11 -10 -10 -10 -8 -7 -7 -7 -6 -6 --------- Run | Yrd Mat Min Sub Mat Fac Low Dat Pro Fac Total 4149 | 78 166 160 705 425 250 832 97 1198 238 Wait 79 | . 7 12 21 4 . 23 . 10 2 Move 3797 | 53 152 134 663 365 237 757 97 1153 186 Hop . | . . . . . . . . . . Pick Up 62 | 11 6 3 2 18 5 3 . 4 10 Fast Attach . | . . . . . . . . . . Attach 40 | 9 . . 2 9 2 1 . 5 12 Detach . | . . . . . . . . . . Swap 28 | . 1 1 1 7 3 7 . 7 1 Drop 25 | 2 . 3 2 11 3 2 . 1 1 Fire 56 | 3 . . . 10 . 34 . 8 1 Melee 61 | . . 7 14 1 . 5 . 9 25 Ram . | . . . . . . . . . . Kick . | . . . . . . . . . . Crush . | . . . . . . . . . . Escape Stasis . | . . . . . . . . . . Rewire . | . . . . . . . . . . Trap 1 | . . . . . . . . 1 . Miscellaneous . | . . . . . . . . . . Route ------- -11/Scrapyard -10/Materials -10/Mines -10/Subcaves -8/Materials (discovered 3 exits: *Fac / Sto x2) -7/Factory -7/Lower Caves -7/Data Miner -6/Proximity Caves -6/Factory History --------- Turn | Location | Event 22 | -11/Scrapyard | Discovered new exit (range 15) 91 | -11/Scrapyard | Entered Materials 114 | -10/Materials | Identified exit to Mines 288 | -10/Materials | Entered Mines 311 | -10/Mines | Learned location of Recycling (-8) 318 | -10/Mines | Build established: Mutant 350 | -10/Mines | A weapon hastily lodged in a ceiling crevice suddenly fell to the ground 425 | -10/Mines | Received a Rocket Launcher from a helpful Derelict 462 | -10/Mines | Discovered new exit (range 8) 483 | -10/Mines | Entered Subcaves 512 | -10/Subcaves | Learned location of Zion (-6) 512 | -10/Subcaves | Met a Zionite searching for "candidates" 1143 | -10/Subcaves | Shifting Twisted Machinery released Mak. Kinetic Plating 1146 | -10/Subcaves | Shifting Twisted Machinery released Sub. Shrapnel Launcher 1258 | -10/Subcaves | Visited Clippyterm 1261 | -10/Subcaves | Learned Research security intel 1320 | -10/Subcaves | Discovered new exit (range 3) 1336 | -10/Subcaves | Entered Materials 1336 | -8/Materials | Evolved 4 slots: Propulsion x1, Utility x3 1774 | -8/Materials | Identified exit to Storage 1798 | -8/Materials | Discovered new exit (range 4) 1801 | -8/Materials | Identified exit to Factory 1892 | -8/Materials | Entered Factory 1892 | -7/Factory | Evolved 2 slots: Utility x2 2064 | -7/Factory | Discovered new exit (range 6) 2069 | -7/Factory | Identified exit to Lower Caves 2190 | -7/Factory | Entered Lower Caves 2249 | -7/Lower Caves | Encountered a Warlord checkpoint 2263 | -7/Lower Caves | Learned Factory stockpile data 2399 | -7/Lower Caves | Entered a destroyed Warlord outpost 2531 | -7/Lower Caves | Attracted the attention of an 0b10 checkpoint 3223 | -7/Lower Caves | A Derelict revealed a hidden shortcut to meet someone special 3239 | -7/Lower Caves | Identified exit to Data Miner 3240 | -7/Lower Caves | Entered Data Miner 3240 | -7/Data Miner | Discovered new exit (range 6) 3248 | -7/Data Miner | Identified exit to Proximity Caves 3264 | -7/Data Miner | Met Data Miner 3298 | -7/Data Miner | Learned location of Section 7 (-2) 3298 | -7/Data Miner | Acquired the access code to Warlord's prototype stash 3320 | -7/Data Miner | Received God Mode back door access code from Data Miner 3357 | -7/Data Miner | Entered Proximity Caves 3367 | -6/Proximity Caves | Learned Factory emergency access door positions 3528 | -6/Proximity Caves | Unaware initiated a cargo recovery operation 4005 | -6/Proximity Caves | Spotted B-75 Beast 4449 | -6/Proximity Caves | Discovered new exit (range 9) 4458 | -6/Proximity Caves | Identified exit to Factory 4547 | -6/Proximity Caves | Crushed by falling debris 4598 | -6/Proximity Caves | Lost 7 parts (1p2n2u2w) 4633 | -6/Proximity Caves | Core integrity fell below 50% 4639 | -6/Proximity Caves | Escorted by Enhanced Grunt 4640 | -6/Proximity Caves | Destroyed B-75 Beast 4886 | -6/Proximity Caves | Entered Factory 4886 | -6/Factory | Accompanied by 1 ally 4886 | -6/Factory | Evolved 2 slots: Power x1, Utility x1 4922 | -6/Factory | Incoming investigation squad redirected 5066 | -6/Factory | Core integrity fell below 50% 5085 | -6/Factory | Core integrity fell below 20% 5108 | -6/Factory | Destroyed by C-17 Slicer with Blade Saw Last Messages --------------- 05068_ System corrupted: Component data lost. 05072_ Force Field destroyed. 05076_ S-27 Virus destroyed. 05078_ The unstable cave ceiling collapses. 05082_ Slug penetrates Wall. 05083_ Knocked back. 05084_ Penetrated by Slug. 05085_ Fusion Compressor destroyed. 05086_ Sml. Storage Unit destroyed. 05086_ Knocked back. 05086_ C-17 Slicer knocked back. 05086_ Gravmag Array destroyed. 05092_ Imp. Weapon Shielding destroyed. 05097_ Mak. Hammer destroyed. 05101_ C-17 Slicer destroyed. 05102_ Adv. Beam Rifle severed. 05102_ Adv. Beam Rifle crushed and broken. 05105_ Jacked C-17 Slicer... 05105_ Command string: \\C6FL 05105_ No effect. Map ----- +----------------------------------------------------+ | ?????????????????????????????????????????????????? | | ?????????????????????????????????????????????????? | | ?????????????????????????????????????????????????? | | ?????????????????????????????????????????????????? | | ?????????????????????????????????????????????????? | | ?????????????????????????????????????????????????? | | ?????????????????????????????????????????????????? | | ?????????????????????????????????????????????????? | | ?????????????????????????????????????????????????? | | ?????????????????????????????????????????????????? | | ?????????????????????????????????????????????????? | | ?????????????????????????????????????????????????? | | ?????????????????????????????????????????????????? | | ??????????????????????????????##################?? | | ??????????????????????????????# ### | | ??????????????????????????????# # | | ??????????????????????????????# # | | ??????????????????????????????# =# " | | ??????????????????????????????# %"%" | | ??????????????????????????????# % % %" " | | ????????????????????????????###Y / = " | | ???????????????????????????##! ! H %[ %""" | | ??????????????????????????##s## % % %# | | ?????????????????????????##c### #### #####" | | ????????????????????????##c##?###??# ] | | ????????????????????????#@##???????# ###### | | ????????????????????????###????????# #????# | | ???????????????????????????????????## #????### | | ????????????????????????????????????# ######## | | ????????????????????????????????????# ######## | | ???????????????????????????????????## # | | ???????????????????????????????????## # | | ???????????????????????????????????## # | | ???????????????????????????????????## # | | ???????????????????????????????????## *+ | | ???????????????????????????????????## # !! | | ?????????????????????????????######## # ! | | ?????????????????????????????######## #* ! | | ????????????????????????????? # | | ????????????????????????????? ##/##### | | ????????????????????????????? ##### | | ????????????????????????????? ##??? | | ????????????????????????????? """ ##?## | | ?????????????????????????????########!! """ ##### | | ????????????????????????????? #!! """ %####T | | ??????????????????????????????????? #! = | | ??????????????????????????????????? # | | ??????????????????????????????????? # | | ??????????????????????????????????? # | | ??????????????????????????????????? # ! | +----------------------------------------------------+ Best States ------------- Heat Dissipation 37 Energy Generation 25 Energy Capacity 600 Matter Stores 450 Matter Capacity 450 Sight Range 16 Terrain Scan Density 10 Additional Mass Support 12 Armor Coverage 475 Resistance: KI 10 Resistance: EM 15 Power Shielding 66 Utility Shielding 66 Weapon Shielding 66 Evasion (%) 55 Recoil Reduction 2 Item Schematics ----------------- Titanium Leg | -8/Materials | Hacked Combat Drone Bay | -7/Data Miner | Free Lgt. Regenerative Plating | -7/Data Miner | Free Cld. Cesium-ion Thruster | -7/Data Miner | Free Gravity Neutralizer | -7/Data Miner | Free Prc. Rocket Launcher | -7/Data Miner | Free Arm. Medium Treads | -7/Data Miner | Free Imp. Shock Absorption System | -7/Data Miner | Free Hvy. Shock Bomb Launcher | -7/Data Miner | Free Imp. Force Booster | -7/Data Miner | Free Robot Schematics ------------------ M-28 Smith | -7/Data Miner | Free G-50 Soldier | -7/Data Miner | Free S-27 Virus | -7/Data Miner | Free Fabricated ------------ Nothing Repaired ---------- Nothing Studied --------- None Alien Tech Used ----------------- None Achievements -------------- Backstab The Oracle Challenges ------------ None Game ------ Seed PoweredEncryptedAccelerator Manual? 0 Play Time 01:02:57 Cumulative 10.8 hours Start 2026.02.18 @ 19:43:05 End 2026.02.18 @ 21:01:05 Sessions 1 Manual Loads 0 Difficulty Rogue Special Mode None Game No. 15 Rogue 15 Adventurer 0 Explorer 0 Win Type - Total 0 Types 0/0/0/0/0/0/0/0/0/0 Lore% 18 Gallery% 20 Achievement% 14 Wizard Run 0 Options --------- Layout 1 ASCII 0 Keyboard 0 Movement Mouse Keybinds 0 Fullscreen 1 Font 24/Swanston Map View 50x35 Zoom Use 0% Tactical HUD 1 Map Filters NONE Filters NONE Steam 1 RUN: 00918685-321b-4714-a9e0-92f5bbf82484